fUSD/lending_fUSD_20251228
["ID","MTS","AMOUNT","RATE_DAILY","PERIOD"]
[399967776,1766953841189,-500.0,0.00014439,2]
[399967777,1766953841199,-562.55426662,0.00014439,2]
[399967778,1766953841208,-273.77153773,0.00014439,2]
[399967779,1766953841218,-154.26,0.00014563,2]
[399967780,1766953841227,-165.07212519,0.00014573,2]
[399967781,1766953841236,-500.51013306,0.00014573,2]
[399967782,1766953841246,-500.0,0.00014573,2]
[399967783,1766953841255,-169.46577369,0.00014573,2]
[399967784,1766953841264,-501.70391837,0.00014573,2]
[399967785,1766953841274,-500.0,0.00014573,2]
[399967786,1766953841283,-224.28186878,0.00014573,2]
[399967787,1766953841292,-500.0,0.00014573,2]
[399967788,1766953841302,-500.0,0.00014573,2]
[399967789,1766953841311,-500.85459949,0.00014573,2]
[399967790,1766953841321,-500.0,0.00014573,2]
[399967791,1766953841331,-169.53966379,0.00014573,2]
[399967792,1766953841340,-500.0,0.00014573,2]
[399967793,1766953841350,-500.0,0.00014573,2]
[399967794,1766953841359,-500.0,0.00014573,2]
[399967795,1766953841369,-500.0,0.00014573,2]
[399967796,1766953841378,-165.96450787,0.00014573,2]
[399967797,1766953841388,-500.0,0.00014573,2]
[399967798,1766953841398,-500.0,0.00014573,2]
[399967799,1766953841407,-500.0,0.00014573,2]
[399967800,1766953841416,-500.0,0.00014573,2]
[399967801,1766953841426,-500.0,0.00014573,2]
[399967802,1766953841438,-500.0,0.00014573,2]
[399967803,1766953841447,-235.96212979,0.00014573,2]
[399967804,1766953841457,-192.43582029,0.00014629,2]
[399967805,1766953841466,-500.0,0.00014639,2]
[399967806,1766953841475,-11928.48276664,0.0001464,2]
[399967807,1766953841485,-10703.94257581,0.00014641,2]
[399967808,1766953841494,-200.0,0.00014705,2]
[399967809,1766953841503,-1295.17,0.00014713,2]
[399967810,1766953841512,-267.22186385,0.00014824,2]
[399967811,1766953841522,-195.0,0.00014864,2]
[399967812,1766953841531,-500.0,0.00014913,2]
[399967813,1766953841540,-10703.94257581,0.00014924,2]
[399967814,1766953841550,-1600.0,0.00014948,2]
[399967815,1766953841559,-11928.48276664,0.00014963,2]
[399967816,1766953841568,-1295.17,0.00014987,2]
[399967817,1766953841577,-5014.92,0.00014999,2]
[399967818,1766953841587,-2042.52030711,0.00015,2]
[399967819,1766953841596,-21378.21540369,0.00015,2]
[399967820,1766953841605,-1155.76996984,0.00015,2]
[399967821,1766953841615,-33612.87900818,0.00015,2]
[399967822,1766953841624,-33520.8529,0.00015021,2]
[399967823,1766953841635,-1000.0,0.00015021,2]
[399967824,1766953841645,-173.02989345,0.00015024,2]
[399967825,1766953841654,-1000.0,0.00015121,2]
[399967826,1766953841663,-441.4218678,0.00015121,2]
[399967827,1766953841673,-1000.0,0.00015121,2]
[399967828,1766953841683,-1000.0,0.00015121,2]
[399967829,1766953841692,-1000.0,0.00015121,2]
[399967830,1766953841702,-574.4149174,0.00015121,2]
[399967831,1766953841711,-500.0,0.00015121,2]
[399967832,1766953841721,-754.67001786,0.00015121,2]
[399967833,1766953841730,-1000.0,0.00015121,2]
[399967834,1766953841739,-1000.0,0.00015121,2]
[399967835,1766953841749,-1000.0,0.00015121,2]
[399967836,1766953841759,-1134.28770415,0.00015121,2]
[399967837,1766953841768,-1000.0,0.00015121,2]
[399967838,1766953841777,-500.0,0.00015187,2]
[399967839,1766953841787,-10703.94257581,0.00015206,2]
[399967840,1766953841796,-250.0,0.00015215,2]
[399967841,1766953841806,-195.0,0.00015215,2]
[399967842,1766953841815,-250.0,0.00015215,2]
[399967843,1766953841825,-195.0,0.00015215,2]
[399967844,1766953841834,-300.0,0.00015215,2]
[399967845,1766953841843,-198.31759794,0.00015215,2]
[399967846,1766953841853,-195.0,0.00015215,2]
[399967847,1766953841862,-600.0,0.00015215,2]
[399967848,1766953841871,-2500.0,0.00015215,2]
[399967849,1766953841880,-193.0,0.00015215,2]
[399967850,1766953841889,-300.0,0.00015215,2]
[399967851,1766953841899,-255.0,0.00015218,2]
[399967852,1766953841909,-267.22186385,0.00015239,2]
[399967853,1766953841918,-200.0,0.00015253,2]
[399967854,1766953841928,-1295.17,0.00015261,2]
[399967855,1766953841937,-250.0,0.00015282,2]
[399967856,1766953841947,-151.0,0.00015285,2]
[399967857,1766953841956,-11928.48276664,0.00015286,2]
[399967858,1766953841966,-150.0,0.00015288,2]
[399967859,1766953841975,-150.0,0.00015288,2]
[399967860,1766953841985,-150.0,0.00015288,2]
[399967861,1766953841995,-298.69511274,0.00015288,2]
[399967862,1766953842004,-150.0,0.00015288,2]
[399967863,1766953842014,-150.0,0.00015288,2]
[399967864,1766953842025,-150.0,0.00015288,2]
[399967865,1766953842034,-150.0,0.00015288,2]
[399967866,1766953842044,-150.0,0.00015288,2]
[399967867,1766953842053,-150.0,0.00015288,2]
[399967868,1766953842063,-150.0,0.00015288,2]
[399967869,1766953842072,-150.0,0.00015288,2]
[399967870,1766953842082,-150.0,0.00015288,2]
[399967871,1766953842092,-150.0,0.00015288,2]
[399967872,1766953842102,-150.0,0.00015288,2]
[399967873,1766953842111,-1517.64,0.000153,2]
[399967874,1766953842120,-150.0,0.00015315,2]
[399967875,1766953842129,-150.0,0.00015324,2]
[399967876,1766953842139,-420.0,0.0001533,2]
[399967877,1766953842148,-150.0,0.00015336,2]
[399967878,1766953842157,-150.0,0.00015339,2]
[399967879,1766953842166,-150.0,0.00015341,2]
[399967880,1766953842177,-150.0,0.00015342,2]
[399967881,1766953842187,-150.0,0.0001536,2]
[399967882,1766953842196,-150.0,0.00015362,2]
[399967883,1766953842205,-150.0,0.00015369,2]
[399967884,1766953842214,-150.0,0.00015369,2]
[399967885,1766953842224,-150.0,0.00015385,2]
[399967886,1766953842233,-150.0,0.00015391,2]
[399967887,1766953842243,-1680.0,0.00015392,2]
[399967888,1766953842253,-150.0,0.00015394,2]
[399967889,1766953842262,-150.0,0.00015396,2]
[399967890,1766953842272,-150.0,0.00015396,2]
[399967891,1766953842281,-506.31384754,0.000154,2]
[399967892,1766953842292,-150.0,0.00015401,2]
[399967893,1766953842300,-150.0,0.00015422,2]
[399967894,1766953842310,-150.0,0.00015432,2]
[399967895,1766953842319,-150.0,0.00015433,2]
[399967896,1766953842329,-150.0,0.00015435,2]
[399967897,1766953842339,-150.0,0.00015442,2]
[399967898,1766953842349,-150.0,0.00015442,2]
[399967899,1766953842359,-150.0,0.00015447,2]
[399967900,1766953842368,-150.0,0.00015449,2]
[399967901,1766953842377,-150.0,0.00015449,2]
[399967902,1766953842387,-150.0,0.00015458,2]
[399967903,1766953842398,-151.0,0.00015458,2]
[399967904,1766953842408,-151.0,0.00015458,2]
[399967905,1766953842418,-151.0,0.00015458,2]
[399967906,1766953842426,-500.0,0.00015461,2]
[399967907,1766953842437,-150.0,0.00015468,2]
[399967908,1766953842447,-150.0,0.00015476,2]
[399967909,1766953842457,-10027.13268045,0.0001548,2]
[399967910,1766953842467,-150.0,0.00015482,2]
[399967911,1766953842476,-10703.94257581,0.00015488,2]
[399967912,1766953842487,-150.0,0.00015494,2]
[399967913,1766953842496,-150.0,0.000155,2]
[399967914,1766953842505,-150.0,0.000155,2]
[399967915,1766953842514,-150.0,0.00015503,2]
[399967916,1766953842525,-150.0,0.00015505,2]
[399967917,1766953842535,-150.0,0.00015509,2]
[399967918,1766953842546,-150.0,0.00015514,2]
[399967919,1766953842558,-150.0,0.0001553,2]
[399967920,1766953842570,-150.0,0.0001553,2]
[399967921,1766953842580,-150.0,0.0001553,2]
[399967922,1766953842590,-1295.17,0.00015535,2]
[399967923,1766953842600,-150.0,0.00015541,2]
[399967924,1766953842610,-150.0,0.00015545,2]
[399967925,1766953842620,-150.0,0.00015553,2]
[399967926,1766953842628,-150.0,0.00015557,2]
[399967927,1766953842637,-150.0,0.00015577,2]
[399967928,1766953842646,-150.0,0.00015579,2]
[399967929,1766953842655,-150.0,0.00015583,2]
[399967930,1766953842664,-150.0,0.00015584,2]
[399967931,1766953842675,-150.0,0.00015597,2]
[399967932,1766953842683,-150.0,0.00015597,2]
[399967933,1766953842692,-150.0,0.00015606,2]
[399967934,1766953842701,-11928.48276664,0.00015608,2]
[399967935,1766953842711,-150.0,0.00015611,2]
[399967936,1766953842720,-150.0,0.00015611,2]
[399967937,1766953842729,-150.0,0.00015613,2]
[399967938,1766953842738,-150.0,0.00015627,2]
[399967942,1766953842923,-150.0,0.00015627,2]
[399967943,1766953842932,-150.0,0.00015627,2]
[399967944,1766953842941,-150.0,0.00015638,2]
[399967945,1766953842951,-150.0,0.00015648,2]
[399967946,1766953842960,-150.0,0.00015649,2]
[399967947,1766953842969,-173.02989345,0.0001565,2]
[399967948,1766953842979,-267.22186385,0.00015655,2]
[399967949,1766953842988,-150.0,0.00015657,2]
[399967950,1766953842997,-150.0,0.00015659,2]
[399967951,1766953843006,-150.0,0.00015665,2]
[399967952,1766953843015,-1500.0,0.00015668,2]
[399967953,1766953843024,-1500.0,0.00015668,2]
[399967954,1766953843034,-1500.0,0.00015668,2]
[399967955,1766953843043,-1500.0,0.00015668,2]
[399967956,1766953843053,-1500.0,0.00015668,2]
[399967957,1766953843064,-1500.0,0.00015668,2]
[399967958,1766953843075,-1500.0,0.00015668,2]
[399967959,1766953843084,-1500.0,0.00015668,2]
[399967960,1766953843094,-150.0,0.00015676,2]
[399967961,1766953843104,-150.0,0.00015685,2]
[399967962,1766953843113,-150.0,0.00015692,2]
[399967963,1766953843123,-150.0,0.00015692,2]
[399967964,1766953843132,-150.0,0.00015699,2]
[399967965,1766953843141,-150.0,0.00015712,2]
[399967966,1766953843151,-150.0,0.00015712,2]
[399967967,1766953843160,-150.0,0.00015719,2]
[399967968,1766953843169,-150.0,0.00015721,2]
[399967969,1766953843180,-150.0,0.00015724,2]
[399967970,1766953843189,-150.0,0.00015731,2]
[399967971,1766953843198,-195.54717431,0.00015735,2]
[399967972,1766953843209,-150.0,0.00015741,2]
[399967973,1766953843219,-150.0,0.00015746,2]
[399967974,1766953843228,-150.0,0.00015751,2]
[399967975,1766953843238,-150.0,0.00015751,2]
[399967976,1766953843246,-150.0,0.00015758,2]
[399967977,1766953843255,-150.0,0.00015765,2]
[399967978,1766953843266,-10703.94257581,0.00015771,2]
[399967979,1766953843276,-150.0,0.00015773,2]
[399967980,1766953843287,-150.0,0.00015773,2]
[399967981,1766953843297,-150.0,0.00015773,2]
[399967982,1766953843307,-150.0,0.00015794,2]
[399967983,1766953843317,-150.0,0.00015797,2]
[399967984,1766953843327,-150.0,0.000158,2]
[399967985,1766953843336,-150.0,0.00015802,2]
[399967986,1766953843346,-150.0,0.00015805,2]
[399967987,1766953843355,-1295.17,0.00015809,2]
[399967988,1766953843366,-220.47,0.00015813,2]
[399967989,1766953843377,-150.0,0.00015818,2]
[399967990,1766953843387,-374.69,0.00015819,2]
[399967991,1766953843396,-150.0,0.00015822,2]
[399967992,1766953843406,-150.0,0.00015827,2]
[399967993,1766953843416,-150.0,0.0001583,2]
[399967994,1766953843426,-150.0,0.00015854,2]
[399967995,1766953843437,-150.0,0.00015854,2]
[399967996,1766953843447,-150.0,0.00015854,2]
[399967997,1766953843457,-150.0,0.00015854,2]
[399967998,1766953843466,-150.0,0.00015854,2]
[399967999,1766953843476,-150.0,0.00015866,2]
[399968000,1766953843485,-150.0,0.0001587,2]
[399968001,1766953843494,-150.0,0.00015872,2]
[399968002,1766953843504,-150.0,0.00015878,2]
[399968003,1766953843514,-235.52,0.0001588,2]
[399968004,1766953843525,-150.0,0.00015881,2]
[399968005,1766953843534,-154.26,0.00015887,2]
[399968006,1766953843543,-150.0,0.00015902,2]
[399968007,1766953843552,-150.0,0.00015905,2]
[399968008,1766953843561,-150.0,0.00015905,2]
[399968009,1766953843570,-150.0,0.00015908,2]
[399968010,1766953843579,-150.0,0.00015919,2]
[399968011,1766953843588,-500.0,0.00015921,2]
[399968012,1766953843598,-150.0,0.00015925,2]
[399968013,1766953843607,-150.0,0.00015925,2]
[399968014,1766953843616,-11928.48276664,0.00015931,2]
[399968015,1766953843626,-150.0,0.00015935,2]
[399968016,1766953843636,-150.0,0.00015935,2]
[399968017,1766953843645,-150.0,0.00015938,2]
[399968018,1766953843654,-150.0,0.00015952,2]
[399968019,1766953843664,-150.0,0.00015957,2]
[399968020,1766953843674,-150.0,0.00015962,2]
[399968021,1766953843683,-150.0,0.00015967,2]
[399968022,1766953843692,-150.0,0.00015967,2]
[399968023,1766953843701,-150.0,0.00015967,2]
[399968024,1766953843711,-163.47849716,0.00015973,2]
[399968025,1766953843720,-200.27562112,0.00015973,2]
[399968026,1766953843730,-502.71159199,0.00015973,2]
[399968027,1766953843739,-500.0,0.00015973,2]
[399968028,1766953843748,-413.88399981,0.00015973,2]
[399968029,1766953843757,-500.0,0.00015973,2]
[399968030,1766953843766,-500.0,0.00015973,2]
[399968031,1766953843775,-500.0,0.00015973,2]
[399968032,1766953843784,-511.82107275,0.00015973,2]
[399968033,1766953843794,-500.0,0.00015973,2]
[399968034,1766953843803,-500.0,0.00015973,2]
[399968035,1766953843812,-500.0,0.00015973,2]
[399968036,1766953843822,-150.0,0.00015974,2]
[399968037,1766953843831,-150.0,0.00015978,2]
[399968038,1766953843841,-150.0,0.00015989,2]
[399968039,1766953843850,-151.0,0.00015997,2]
[399968040,1766953843860,-16961.26309548,0.00016,2]
[399968041,1766953843871,-114467.83555121,0.00016,2]
[399968042,1766953843880,-17005.83516608,0.00016,2]
[399968043,1766953843892,-42413.38531049,0.00016,4]
[399968044,1766953843903,-150.0,0.00016008,2]
[399968045,1766953843912,-150.0,0.0001601,2]
[399968046,1766953843923,-150.0,0.00016016,2]
[399968047,1766953843932,-150.0,0.00016016,2]
[399968048,1766953843942,-150.0,0.00016016,2]
[399968049,1766953843951,-150.0,0.00016026,2]
[399968050,1766953843961,-150.0,0.00016031,2]
[399968051,1766953843972,-150.0,0.00016043,2]
[399968052,1766953843983,-150.0,0.00016047,2]
[399968053,1766953843992,-10703.94257581,0.00016053,2]
[399968054,1766953844003,-150.0,0.0001606,2]
[399968055,1766953844013,-150.0,0.0001606,2]
[399968056,1766953844023,-150.0,0.00016064,2]
[399968057,1766953844034,-150.0,0.0001607,2]
[399968058,1766953844045,-267.22186385,0.0001607,2]
[399968059,1766953844056,-150.0,0.0001608,2]
[399968060,1766953844065,-150.0,0.00016083,2]
[399968061,1766953844075,-1295.17,0.00016083,2]
[399968062,1766953844085,-150.0,0.00016084,2]
[399968063,1766953844095,-280.44326248,0.00016088,2]
[399968064,1766953844104,-3874.97124849,0.00016088,2]
[399968065,1766953844113,-5102.30663022,0.00016088,2]
[399968066,1766953844122,-150.0,0.00016097,2]
[399968067,1766953844132,-150.0,0.00016097,2]
[399968068,1766953844141,-150.0,0.000161,2]
[399968069,1766953844151,-150.0,0.00016111,2]
[399968070,1766953844161,-150.0,0.00016113,2]
[399968071,1766953844172,-150.0,0.00016119,2]
[399968072,1766953844183,-150.0,0.00016124,2]
[399968073,1766953844193,-150.0,0.00016137,2]
[399968074,1766953844204,-150.0,0.00016137,2]
[399968075,1766953844213,-150.0,0.00016137,2]
[399968076,1766953844222,-150.0,0.00016137,2]
[399968077,1766953844233,-150.0,0.00016137,2]
[399968078,1766953844242,-153.47713146,0.00016149,2]
[399968079,1766953844251,-500.0,0.00016149,2]
[399968080,1766953844260,-500.0,0.00016149,2]
[399968081,1766953844270,-642.94,0.00016149,2]
[399968082,1766953844280,-500.0,0.00016149,2]
[399968083,1766953844289,-500.0,0.00016149,2]
[399968084,1766953844298,-553.64373807,0.00016149,2]
[399968085,1766953844307,-500.0,0.00016149,2]
[399968086,1766953844316,-500.0,0.00016149,2]
[399968087,1766953844327,-500.0,0.00016149,2]
[399968088,1766953844336,-500.0,0.00016149,2]
[399968089,1766953844347,-500.0,0.00016149,2]
[399968090,1766953844357,-200.0,0.00016149,2]
[399968091,1766953844366,-207.4,0.00016149,2]
[399968092,1766953844376,-215.0738,0.00016149,2]
[399968093,1766953844385,-223.0315306,0.00016149,2]
[399968094,1766953844394,-231.28369723,0.00016149,2]
[399968095,1766953844403,-239.84119403,0.00016149,2]
[399968096,1766953844412,-250.0,0.00016149,2]
[399968097,1766953844421,-248.71531821,0.00016149,2]
[399968098,1766953844431,-250.0,0.00016149,2]
[399968099,1766953844445,-500.0,0.00016149,2]
[399968100,1766953844455,-257.91778498,0.00016149,2]
[399968101,1766953844464,-250.0,0.00016149,2]
[399968102,1766953844474,-500.0,0.00016149,2]
[399968103,1766953844484,-267.46074303,0.00016149,2]
[399968104,1766953844494,-250.0,0.00016149,2]
[399968105,1766953844504,-500.0,0.00016149,2]
[399968106,1766953844516,-1000.0,0.00016149,2]
[399968107,1766953844525,-250.0,0.00016149,2]
[399968108,1766953844537,-500.0,0.00016149,2]
[399968109,1766953844546,-1000.0,0.00016149,2]
[399968110,1766953844555,-500.0,0.00016149,2]
[399968111,1766953844564,-250.0,0.00016149,2]
[399968112,1766953844573,-500.0,0.00016149,2]
[399968113,1766953844582,-500.0,0.00016149,2]
[399968115,1766953844592,-500.0,0.00016149,2]
[399968116,1766953844602,-250.0,0.00016149,2]
[399968117,1766953844611,-500.0,0.00016149,2]
[399968118,1766953844621,-500.0,0.00016149,2]
[399968119,1766953844630,-250.0,0.00016149,2]
[399968120,1766953844640,-500.0,0.00016149,2]
[399968121,1766953844651,-500.0,0.00016149,2]
[399968122,1766953844660,-250.0,0.00016149,2]
[399968123,1766953844670,-500.0,0.00016149,2]
[399968124,1766953844680,-201.93286099,0.00016149,2]
[399968125,1766953844690,-500.0,0.00016149,2]
[399968126,1766953844699,-250.0,0.00016149,2]
[399968127,1766953844710,-259.6625457,0.00016149,2]
[399968128,1766953844719,-500.0,0.00016149,2]
[399968129,1766953844729,-250.0,0.00016149,2]
[399968130,1766953844738,-500.0,0.00016149,2]
[399968131,1766953844747,-250.0,0.00016149,2]
[399968132,1766953844756,-500.0,0.00016149,2]
[399968133,1766953844765,-500.0,0.00016149,2]
[399968134,1766953844774,-250.0,0.00016149,2]
[399968135,1766953844783,-500.0,0.00016149,2]
[399968136,1766953844792,-284.76184806,0.00016149,2]
[399968137,1766953844801,-500.0,0.00016149,2]
[399968138,1766953844812,-500.0,0.00016149,2]
[399968139,1766953844821,-500.0,0.00016149,2]
[399968140,1766953844830,-320.1146403,0.00016149,2]
[399968141,1766953844839,-322.6107,0.00016149,2]
[399968142,1766953844848,-500.0,0.00016149,2]
[399968143,1766953844859,-500.0,0.00016149,2]
[399968144,1766953844869,-500.0,0.00016149,2]
[399968145,1766953844879,-282.13607366,0.00016149,2]
[399968146,1766953844889,-150.0,0.0001615,2]
[399968147,1766953844900,-1056.0,0.00016154,2]
[399968148,1766953844912,-150.0,0.00016155,2]
[399968149,1766953844922,-150.0,0.00016161,2]
[399968150,1766953844931,-150.0,0.00016163,2]
[399968151,1766953844955,-150.0,0.00016174,2]
[399968152,1766953844968,-150.0,0.00016177,2]
[399968153,1766953844977,-150.0,0.00016177,2]
[399968154,1766953844987,-150.0,0.0001619,2]
[399968155,1766953844996,-150.0,0.00016191,2]
[399968156,1766953845006,-150.0,0.00016194,2]
[399968157,1766953845015,-1056.0,0.00016194,2]
[399968158,1766953845024,-5000.00553133,0.000162,5]
[399968159,1766953845033,-150.0,0.00016204,2]
[399968160,1766953845043,-150.0,0.0001621,2]
[399968161,1766953845052,-150.0,0.00016214,2]
[399968162,1766953845062,-150.0,0.00016214,2]
[399968163,1766953845071,-2000.0,0.00016216,2]
[399968164,1766953845080,-2000.0,0.00016216,2]
[399968165,1766953845090,-2000.0,0.00016216,2]
[399968166,1766953845099,-1231.96614317,0.00016216,2]
[399968167,1766953845109,-2000.0,0.00016216,2]
[399968168,1766953845118,-1500.0,0.00016216,2]
[399968169,1766953845128,-2134.22445627,0.00016216,2]
[399968170,1766953845138,-2000.0,0.00016216,2]
[399968171,1766953845149,-150.0,0.00016227,2]
[399968172,1766953845160,-150.0,0.00016231,2]
[399968173,1766953845170,-1056.0,0.00016243,2]
[399968174,1766953845180,-150.0,0.00016243,2]
[399968175,1766953845190,-150.0,0.00016248,2]
[399968176,1766953845199,-11928.48276664,0.00016254,2]
[399968177,1766953845208,-150.0,0.00016258,2]
[399968178,1766953845217,-150.0,0.00016258,2]
[399968179,1766953845226,-150.0,0.00016258,2]
[399968180,1766953845235,-150.0,0.00016263,2]
[399968181,1766953845244,-150.0,0.00016266,2]
[399968182,1766953845254,-173.02989345,0.00016275,2]
[399968183,1766953845265,-150.0,0.00016285,2]
[399968184,1766953845275,-150.0,0.00016296,2]
[399968185,1766953845287,-150.0,0.000163,2]
[399968186,1766953845297,-150.0,0.00016307,2]
[399968187,1766953845308,-150.0,0.00016307,2]
[399968188,1766953845319,-150.0,0.00016307,2]
[399968189,1766953845328,-150.0,0.00016312,2]
[399968190,1766953845338,-150.0,0.00016317,2]
[399968191,1766953845347,-150.0,0.00016322,2]
[399968192,1766953845358,-10703.94257581,0.00016335,2]
[399968193,1766953845368,-150.0,0.00016336,2]
[399968194,1766953845379,-150.0,0.00016339,2]
[399968196,1766953845390,-150.0,0.00016339,2]
[399968198,1766953845400,-150.0,0.00016349,2]
[399968200,1766953845409,-150.0,0.00016349,2]
[399968201,1766953845423,-150.0,0.00016355,2]
[399968202,1766953845434,-1295.17,0.00016357,2]
[399968203,1766953845447,-150.0,0.00016366,2]
[399968204,1766953845456,-150.0,0.00016369,2]
[399968205,1766953845465,-150.0,0.00016369,2]
[399968206,1766953845475,-150.0,0.00016372,2]
[399968207,1766953845486,-150.0,0.00016393,2]
[399968208,1766953845495,-150.0,0.00016395,2]
[399968209,1766953845504,-150.0,0.00016402,2]
[399968210,1766953845513,-150.0,0.00016404,2]
[399968211,1766953845523,-150.0,0.00016408,2]
[399968212,1766953845532,-152.09829773,0.0001642,2]
[399968213,1766953845542,-150.0,0.0001642,2]
[399968214,1766953845552,-150.0,0.0001642,2]
[399968215,1766953845563,-150.0,0.0001642,2]
[399968216,1766953845571,-150.0,0.0001642,2]
[399968217,1766953845582,-150.0,0.0001642,2]
[399968218,1766953845591,-433.0,0.00016429,2]
[399968219,1766953845601,-500.0,0.00016437,2]
[399968220,1766953845611,-500.0,0.00016437,2]
[399968221,1766953845621,-500.0,0.00016438,2]
[399968222,1766953845630,-500.0,0.00016438,2]
[399968223,1766953845640,-500.0,0.00016438,2]
[399968224,1766953845650,-500.0,0.00016438,2]
[399968225,1766953845660,-500.0,0.00016438,2]
[399968226,1766953845671,-500.0,0.00016438,2]
[399968227,1766953845681,-500.0,0.00016438,2]
[399968228,1766953845690,-500.0,0.00016438,2]
[399968229,1766953845700,-500.0,0.00016438,2]
[399968230,1766953845709,-500.0,0.00016438,2]
[399968231,1766953845718,-500.0,0.00016438,2]
[399968232,1766953845727,-500.0,0.00016438,2]
[399968233,1766953845736,-350.0,0.00016438,2]
[399968234,1766953845745,-500.0,0.00016438,2]
[399968235,1766953845754,-500.0,0.00016438,2]
[399968236,1766953845763,-500.0,0.00016438,2]
[399968237,1766953845772,-500.0,0.00016438,2]
[399968238,1766953845781,-500.0,0.00016438,2]
[399968239,1766953845790,-500.0,0.00016438,2]
[399968240,1766953845799,-500.0,0.00016438,2]
[399968241,1766953845808,-500.0,0.00016438,2]
[399968242,1766953845817,-500.0,0.00016438,2]
[399968243,1766953845825,-500.0,0.00016438,2]
[399968244,1766953845835,-500.0,0.00016438,2]
[399968245,1766953845844,-500.0,0.00016438,2]
[399968246,1766953845853,-500.0,0.00016438,2]
[399968247,1766953845862,-500.0,0.00016438,2]
[399968248,1766953845871,-500.0,0.00016438,2]
[399968249,1766953845882,-500.0,0.00016438,2]
[399968250,1766953845892,-500.0,0.00016438,2]
[399968251,1766953845903,-500.0,0.00016438,2]
[399968252,1766953845914,-500.0,0.00016438,2]
[399968253,1766953845923,-500.0,0.00016438,2]
[399968254,1766953845933,-500.0,0.00016438,2]
[399968255,1766953845942,-500.0,0.00016438,2]
[399968256,1766953845951,-500.0,0.00016438,2]
[399968257,1766953845961,-500.0,0.00016438,2]
[399968258,1766953845971,-500.0,0.00016438,2]
[399968259,1766953845981,-500.0,0.00016438,2]
[399968260,1766953845990,-500.0,0.00016438,2]
[399968261,1766953845999,-485.26290856,0.00016438,2]
[399968262,1766953846010,-500.0,0.00016438,2]
[399968263,1766953846020,-500.0,0.00016438,2]
[399968264,1766953846030,-500.0,0.00016438,2]
[399968265,1766953846040,-500.0,0.00016438,2]
[399968266,1766953846049,-500.0,0.00016438,2]
[399968267,1766953846058,-500.0,0.00016438,2]
[399968268,1766953846067,-500.0,0.00016438,2]
[399968269,1766953846076,-500.0,0.00016438,2]
[399968270,1766953846085,-500.0,0.00016438,2]
[399968271,1766953846094,-500.0,0.00016438,2]
[399968272,1766953846103,-500.0,0.00016438,2]
[399968273,1766953846112,-500.0,0.00016438,2]
[399968274,1766953846122,-500.0,0.00016438,2]
[399968275,1766953846131,-500.0,0.00016438,2]
[399968276,1766953846140,-500.0,0.00016438,2]
[399968277,1766953846149,-500.0,0.00016438,2]
[399968278,1766953846159,-500.0,0.00016438,2]
[399968279,1766953846168,-500.0,0.00016438,2]
[399968280,1766953846178,-500.0,0.00016438,2]
[399968281,1766953846187,-500.0,0.00016438,2]
[399968282,1766953846196,-500.0,0.00016438,2]